Cogmind - Beta 13 @@@ ROGUE MODE // 2024.03.27 @ 16:46:10 Player: opdo Result: Self-destructed Performance ------------- Evolutions (2) 1000 Regions Visited (7) 1400 Robots Destroyed (21) 105 Value Destroyed (682) 682 Prototype IDs (0) 0 Alien Tech Used (0) 0 Bonus (0) 0 TOTAL SCORE: 3187 Bonus ------- None Cogmind --------- Core Integrity 490/550 Matter 290/300 Energy 99/100 System Corruption 0% Temperature Cool (0) Movement Core (50) Location -8/Materials Parts ------- > --- POWER (1) -------- (None) > --- PROPULSION (3) --- Flight Unit Cesium-ion Thruster > --- UTILITY (4) ------ Heat Sink Seismic Detector > --- WEAPON (3) ------- (None) > --- INVENTORY (5) ---- High-capacity Storage Unit Structural Scanner Terrain Scan Processor Light Armor Plating EM Shotgun Peak State ------------ > --- POWER ------------ (None) > --- PROPULSION ------- Flight Unit Flight Unit Cesium-ion Thruster > --- UTILITY ---------- Heat Sink Seismic Detector > --- WEAPON ----------- EM Shotgun EM Shotgun EM Pulse Cannon > --- INVENTORY -------- High-capacity Storage Unit Structural Scanner Terrain Scan Processor [Rating: 14] Favorites ----------- Power Light Ion Engine Engine Light Ion Engine Power Core Light Nuclear Core Propulsion Aluminum Leg Leg Aluminum Leg Flight Unit Flight Unit Utility Small Storage Unit Device Sensor Array Storage Small Storage Unit Weapon Autogun Energy Gun Small Laser Energy Cannon EM Pulse Cannon Ballistic Gun Autogun Launcher Grenade Launcher Build | -11 -10 -10 -9 -9 -9 -8 -8 ------- Run | Yrd Mat Min Mat Min Exi Min Mat Slots Evolved 4 | . . . 2 . . . 2 Power . | . . . . . . . . Propulsion 1 | . . . 1 . . . . Utility 2 | . . . 1 . . . 1 Weapon 1 | . . . . . . . 1 Parts Attached 42 | 6 . 8 16 1 . 8 3 Power 4 | 1 . 1 1 . . 1 . Engine 3 | 1 . . 1 . . 1 . Core 1 | . . 1 . . . . . Reactor . | . . . . . . . . Propulsion 16 | 2 . 2 9 . . 3 . Treads . | . . . . . . . . Leg 10 | 2 . . 8 . . . . Wheel . | . . . . . . . . Hover . | . . . . . . . . Flight 6 | . . 2 1 . . 3 . Utility 5 | 1 . 1 2 . . 1 . Device 4 | . . 1 2 . . 1 . Storage 1 | 1 . . . . . . . Processor . | . . . . . . . . Hackware . | . . . . . . . . Protection . | . . . . . . . . Artifact . | . . . . . . . . Weapon 17 | 2 . 4 4 1 . 3 3 Energy Gun 10 | 1 . 4 2 . . 1 2 Energy Cannon 1 | . . . . . . . 1 Ballistic Gun 5 | 1 . . 2 1 . 1 . Ballistic Cannon . | . . . . . . . . Launcher 1 | . . . . . . 1 . Special Weapon . | . . . . . . . . Impact Weapon . | . . . . . . . . Slashing Weapon . | . . . . . . . . Piercing Weapon . | . . . . . . . . Special Melee Weapon . | . . . . . . . . Unidentified Prototypes . | . . . . . . . . Parts Lost 23 | . . 3 5 . . 11 4 Power 4 | . . 1 1 . . 2 . Propulsion 7 | . . 1 3 . . 2 1 Utility 2 | . . . . . . 2 . Weapon 10 | . . 1 1 . . 5 3 Highest Loss Streak 11 | . . 1 3 . . 11 2 To Critical Strikes . | . . . . . . . . Average Slot Usage (%) 86 | . 85 95 92 88 88 48 57 Engine 7 | . 14 5 2 11 11 3 . Core 2 | . . 8 8 . . . . Leg 19 | . 28 20 17 22 22 3 . Flight 3 | . . 7 9 . . 7 21 Device 19 | . . 11 21 22 22 17 18 Storage 10 | . 14 14 11 11 11 5 . Energy Gun 6 | . 14 21 13 . . 3 14 Ballistic Gun 15 | . 14 6 8 22 22 6 . Naked Turns . | . . . . . . . . Heaviest Build 17 | 12 12 15 16 17 17 17 14 Greatest Support 30 | 20 20 20 30 20 20 20 13 Greatest Overweight (x) 4 | 1 . 1 1 . . 4 2 Average Overweight (x) . | . . . . . . . . Largest Inventory Capacity 8 | 8 8 8 8 8 8 8 5 Average Capacity 7 | 7 8 8 8 8 8 6 5 Most Carried 8 | 5 2 6 8 7 8 8 5 Average Carried 5 | 2 1 4 5 6 7 5 3 Final Capacity 8 | 8 8 8 8 8 8 5 5 Final Carried 8 | 1 2 6 5 7 8 4 5 Class Distribution -------------------- 81% | Mutant 15% | Scavenger-Mutant 3% | Gunner Dominant Class ---------------- Mutant | -10/Materials Mutant | -10/Mines Scavenger-Mutant | -9/Materials Mutant | -9/Mines Mutant | -9/Exiles Mutant | -8/Mines Gunner | -8/Materials Resources | -11 -10 -10 -9 -9 -9 -8 -8 ----------- Run | Yrd Mat Min Mat Min Exi Min Mat Matter Collected 687 | 65 . 111 189 54 . 98 170 Remotely . | . . . . . . . . Salvage Created 799 | . . 274 307 . . 98 120 Parts 51 | . . 25 15 . . 3 8 Haulers Intercepted . | . . . . . . . . Recyclers Shooed 1 | . . . 1 . . . . Parts Field Recycled . | . . . . . . . . Retrieved Matter . | . . . . . . . . Parts Self-Destructed . | . . . . . . . . Prevented . | . . . . . . . . Kills | -11 -10 -10 -9 -9 -9 -8 -8 ------- Run | Yrd Mat Min Mat Min Exi Min Mat Combat Hostiles Destroyed 21 | . . 10 7 . . 2 2 Guns 21 | . . 10 7 . . 2 2 Classes Destroyed 3 | . . 2 1 . . . . Swarmer 6 | . . 6 . . . . . Grunt 11 | . . 4 5 . . 2 . Sentry 4 | . . . 2 . . . 2 Best Kill Streak 4 | . . 4 2 . . 2 1 Combat Bots Only 4 | . . 4 2 . . 2 1 Max Kills in Single Turn 1 | . . 1 1 . . 1 1 Gunslinging . | . . . . . . . . Exploded . | . . . . . . . . Melee . | . . . . . . . . Uniques/NPCs Destroyed . | . . . . . . . . Combat | -11 -10 -10 -9 -9 -9 -8 -8 -------- Run | Yrd Mat Min Mat Min Exi Min Mat Hostile Shots Fired 212 | . . 66 51 . . 68 27 Missed 49 | . . 17 10 . . 12 10 Damage Taken 2333 | . . 591 597 . . 897 248 Core 507 | . . 85 104 . . 258 60 Absorbed by Shields . | . . . . . . . . Core Remaining (%) 58 | 100 . 66 . . . 9 . Volleys Fired 80 | . . 30 21 . . 24 5 Largest 2 | . . 2 2 . . 2 2 Hottest 105 | . . 105 105 . . 63 90 Shots Fired 138 | . . 59 41 . . 28 10 Gun 137 | . . 59 41 . . 27 10 Cannon . | . . . . . . . . Launcher 1 | . . . . . . 1 . Special . | . . . . . . . . Kinetic 67 | . . 22 31 . . 14 . Thermal 60 | . . 37 10 . . 13 . Explosive 1 | . . . . . . 1 . Electromagnetic 10 | . . . . . . . 10 Robot Hit Streak 18 | . . 6 18 . . 13 7 Robot Miss Streak 4 | . . 4 1 . . 3 1 Penetration Max . | . . . . . . . . Secondary Targets 4 | . . 2 1 . . . 1 Max Gunslinging Chain 1 | . . 1 1 . . . 1 Shots Hit Robots 103 | . . 36 37 . . 21 9 Core Hits 38 | . . 16 10 . . 6 6 Critical Kills . | . . . . . . . . Critical Parts Destroyed 1 | . . . 1 . . . . Critical Strikes 1 | . . . 1 . . . . Destroy 1 | . . . 1 . . . . Melee Attacks . | . . . . . . . . Impact . | . . . . . . . . Slashing . | . . . . . . . . Piercing . | . . . . . . . . Sneak Attacks . | . . . . . . . . Combat Hostiles . | . . . . . . . . Follow-up Attacks . | . . . . . . . . Damage Inflicted 1493 | . . 427 544 . . 395 127 Guns 1416 | . . 417 544 . . 328 127 Cannons . | . . . . . . . . Explosions 67 | . . . . . . 67 . Melee . | . . . . . . . . Ramming 10 | . . 10 . . . . . Kinetic 784 | . . 138 422 . . 224 . Thermal 505 | . . 279 122 . . 104 . Explosive 67 | . . . . . . 67 . Electromagnetic 127 | . . . . . . . 127 Impact . | . . . . . . . . Slashing . | . . . . . . . . Piercing . | . . . . . . . . Highest Corruption 2 | . . 2 . . . . . Average Corruption 2 | . . 2 . . . . . Corruption Purged . | . . . . . . . . Corruption Blocked . | . . . . . . . . Effects 1 | . . 1 . . . . . Energy Discharges 1 | . . 1 . . . . . Overload Shots . | . . . . . . . . Overflow Damage . | . . . . . . . . Projectiles . | . . . . . . . . Explosions . | . . . . . . . . Melee . | . . . . . . . . Knockbacks . | . . . . . . . . Impact . | . . . . . . . . Kinetic . | . . . . . . . . Secondary . | . . . . . . . . Self-Inflicted Damage 45 | . . 5 . . . 40 . Shots 1 | . . . . . . 1 . Rammed 1 | . . 1 . . . . . Targets Rammed 2 | . . 1 1 . . . . Kicked 1 | . . . 1 . . . . Crushed . | . . . . . . . . Highest Temperature 350 | . . 350 42 . . 70 26 Average Temperature 62 | . . 96 12 . . 29 10 Received Heat Transfer 1041 | . . 240 207 . . 468 126 Effects 1 | . . 1 . . . . . Shutdowns 1 | . . 1 . . . . . Siege Activations . | . . . . . . . . Robots Corrupted . | . . . . . . . . Combat Hostiles . | . . . . . . . . Parts Fried 1 | . . . . . . . 1 Impact Corruptions . | . . . . . . . . Robots Melted . | . . . . . . . . Combat Hostiles . | . . . . . . . . Parts Melted . | . . . . . . . . Heat Transferred 1133 | . . 635 273 . . 225 . Parts Sabotaged . | . . . . . . . . Parts Stolen . | . . . . . . . . Parts Stripped . | . . . . . . . . Power Chain Reactions . | . . . . . . . . Alert | -11 -10 -10 -9 -9 -9 -8 -8 ------- Run | Yrd Mat Min Mat Min Exi Min Mat Peak Influence 315 | . . 285 315 50 . 37 87 Initial 111 | . . . 111 50 . . 17 Average 82 | . . 157 174 22 . 11 54 Maximum Alert Level 1 | . . 1 1 . . . . Low Security (%) 84 | 100 100 53 67 100 . 100 100 Level 1 15 | . . 46 32 . . . . Level 2 . | . . . . . . . . Level 3 . | . . . . . . . . Level 4 . | . . . . . . . . Level 5 . | . . . . . . . . High Security . | . . . . . . . . Max Security . | . . . . . . . . Squads Dispatched 1 | . . . 1 . . . . Investigation . | . . . . . . . . Extermination . | . . . . . . . . Reinforcement 1 | . . . 1 . . . . Assault . | . . . . . . . . Garrison . | . . . . . . . . Intercept . | . . . . . . . . Searches Triggered . | . . . . . . . . Construction Impeded . | . . . . . . . . Haulers Reinforced . | . . . . . . . . Active Scanning Responses . | . . . . . . . . Cargo Convoy Interrupts . | . . . . . . . . Stealth | -11 -10 -10 -9 -9 -9 -8 -8 --------- Run | Yrd Mat Min Mat Min Exi Min Mat Distress Signals . | . . . . . . . . Communications Jammed . | . . . . . . . . Distress Signals . | . . . . . . . . Times Spotted 44 | . . 14 11 . . 10 9 Peak Tracking Total 8 | . . 5 5 . . 8 5 Tactical Retreats 2 | . . 1 . . . 1 . Traps | -11 -10 -10 -9 -9 -9 -8 -8 ------- Run | Yrd Mat Min Mat Min Exi Min Mat Traps Triggered 4 | . . . 4 . . . . Indirectly . | . . . . . . . . Trap Hack Attempts . | . . . . . . . . Triggered . | . . . . . . . . Disarmed . | . . . . . . . . Reprogrammed . | . . . . . . . . Reused . | . . . . . . . . Traps Extracted . | . . . . . . . . Installed . | . . . . . . . . Triggered . | . . . . . . . . Machines | -11 -10 -10 -9 -9 -9 -8 -8 ---------- Run | Yrd Mat Min Mat Min Exi Min Mat Machines Disabled . | . . . . . . . . Max in Single Turn . | . . . . . . . . Machines Repaired . | . . . . . . . . Machines Dismantled . | . . . . . . . . Machines Sabotaged . | . . . . . . . . Overloaded Fab Kills . | . . . . . . . . Hacking | -11 -10 -10 -9 -9 -9 -8 -8 --------- Run | Yrd Mat Min Mat Min Exi Min Mat Machines Accessed 8 | . 1 1 5 . 1 . . Terminals 5 | . . 1 4 . . . . Fabricators . | . . . . . . . . Repair Stations . | . . . . . . . . Recycling Units 1 | . 1 . . . . . . Scanalyzers 1 | . . . 1 . . . . Garrison Access . | . . . . . . . . Total Hacks 20 | . 3 2 11 . 4 . . Successful 12 | . 2 . 6 . 4 . . Failed 8 | . 1 2 5 . . . . Catastrophic 2 | . . 1 1 . . . . Database Lockouts . | . . . . . . . . Manual 10 | . . 1 9 . . . . Terminals 11 | . . 2 9 . . . . Fabricators . | . . . . . . . . Repair Stations . | . . . . . . . . Recycling Units 3 | . 3 . . . . . . Scanalyzers 2 | . . . 2 . . . . Garrison Access . | . . . . . . . . Terminal Hacks 4 | . . . . . 4 . . Record 4 | . . . . . 4 . . Fabricator Hacks . | . . . . . . . . Repair Station Hacks . | . . . . . . . . Recycling Unit Hacks 2 | . 2 . . . . . . Retrieve Matter 1 | . 1 . . . . . . Retrieve Components 1 | . 1 . . . . . . Scanalyzer 2 | . . . 2 . . . . Insert Component 1 | . . . 1 . . . . Analyze 1 | . . . 1 . . . . Garrison Access Hacks . | . . . . . . . . Unauthorized Hacks 4 | . . . 4 . . . . Terminals 4 | . . . 4 . . . . Assimilate 1 | . . . 1 . . . . Botnet 3 | . . . 3 . . . . Fabricators . | . . . . . . . . Repair Stations . | . . . . . . . . Recycling Units . | . . . . . . . . Scanalyzers . | . . . . . . . . Garrison Access . | . . . . . . . . Data Cores Recovered . | . . . . . . . . Used . | . . . . . . . . Hacking Detections 4 | . 1 1 2 . . . . Full Trace Events 1 | . . 1 . . . . . Feedback Events . | . . . . . . . . Feedback Blocked . | . . . . . . . . Robot Schematics Acquired . | . . . . . . . . Robots Built . | . . . . . . . . Authchips . | . . . . . . . . Time . | . . . . . . . . Total Robot Build Rating . | . . . . . . . . Part Schematics Acquired 1 | . . . 1 . . . . Parts Built . | . . . . . . . . Authchips . | . . . . . . . . Time . | . . . . . . . . Total Part Build Rating . | . . . . . . . . Parts Repaired . | . . . . . . . . Time . | . . . . . . . . Parts Recycled . | . . . . . . . . Recycled Matter . | . . . . . . . . Retrieved Matter . | . . . . . . . . Retrieved Components 3 | . 3 . . . . . . Parts Scanalyzed 1 | . . . 1 . . . . Part Schematics Acquired 1 | . . . 1 . . . . Parts Damaged . | . . . . . . . . Bothacking | -11 -10 -10 -9 -9 -9 -8 -8 ------------ Run | Yrd Mat Min Mat Min Exi Min Mat Used RIF Installer . | . . . . . . . . Robots Hacked . | . . . . . . . . Non-combat . | . . . . . . . . Combat . | . . . . . . . . Robot Hacks Applied . | . . . . . . . . Relay Couplers Released . | . . . . . . . . Fabnet Peak Effective % . | . . . . . . . . Robots Rewired . | . . . . . . . . Allies Hacked . | . . . . . . . . Hacks Repelled . | . . . . . . . . Allies | -11 -10 -10 -9 -9 -9 -8 -8 -------- Run | Yrd Mat Min Mat Min Exi Min Mat Total Allies . | . . . . . . . . Largest Group . | . . . . . . . . Highest-Rated Group . | . . . . . . . . Highest-Rated Ally . | . . . . . . . . Total Orders . | . . . . . . . . Ally Attacks . | . . . . . . . . Total Damage . | . . . . . . . . Kills . | . . . . . . . . Allies Corrupted . | . . . . . . . . Allies Melted . | . . . . . . . . Intel | -11 -10 -10 -9 -9 -9 -8 -8 ------- Run | Yrd Mat Min Mat Min Exi Min Mat Robot Analysis Total . | . . . . . . . . Derelict Logs Recovered 2 | . . 1 . 1 . . . Drone Launches . | . . . . . . . . Drone Recoveries . | . . . . . . . . Exploration | -11 -10 -10 -9 -9 -9 -8 -8 ------------- Run | Yrd Mat Min Mat Min Exi Min Mat Turns Passed 2521 | 42 35 335 479 883 550 101 96 Spaces Moved 1871 | 25 29 189 305 721 457 74 71 Core 39 | 8 . . . . . 6 25 Treads . | . . . . . . . . Legs 1531 | 17 29 120 183 721 457 4 . Wheels . | . . . . . . . . Hover . | . . . . . . . . Flight 301 | . . 69 122 . . 64 46 Fastest Speed 32 | 50 120 117 114 120 120 32 32 Average Speed 115 | 117 120 120 120 120 120 50 74 Slowest Speed 250 | 190 120 190 190 120 120 250 150 Overloaded Moves . | . . . . . . . . Propulsion Burnouts . | . . . . . . . . Robots Hopped . | . . . . . . . . Cave-ins Triggered . | . . . . . . . . Exploration Rate (%) 37 | 3 7 46 35 99 85 20 8 Regions Visited 7 Branch Regions 4 Pre-discovered Areas 2 | . . . . 1 1 . . Known Exits Taken . | . . . . . . . . Unknown Exits Taken 7 | 1 1 1 1 1 1 1 . Scrap Searched 2 | . . . . 2 . . . Spaces Dug . | . . . . . . . . Terrain Destroyed 8 | . . . . . . 8 . Melee . | . . . . . . . . Projectile 1 | . . . . . . 1 . AOE 7 | . . . . . . 7 . Terrain Rammed . | . . . . . . . . Walls Destroyed . | . . . . . . . . Machines Disabled . | . . . . . . . . Actions | -11 -10 -10 -9 -9 -9 -8 -8 --------- Run | Yrd Mat Min Mat Min Exi Min Mat Total 2099 | 37 29 241 383 738 458 109 104 Wait 58 | . . 4 18 15 . . 21 Move 1864 | 24 28 188 304 720 456 73 71 Hop . | . . . . . . . . Pick Up 45 | 7 1 9 17 2 1 4 4 Fast Attach . | . . . . . . . . Attach 33 | 6 . 4 12 . . 8 3 Detach . | . . . . . . . . Swap 9 | . . 4 4 1 . . . Drop 7 | . . 1 6 . . . . Fire 80 | . . 30 21 . . 24 5 Melee . | . . . . . . . . Ram 1 | . . 1 . . . . . Kick 1 | . . . 1 . . . . Crush . | . . . . . . . . Escape Stasis . | . . . . . . . . Rewire 1 | . . . . . 1 . . Trap . | . . . . . . . . Miscellaneous . | . . . . . . . . Route ------- -11/Scrapyard -10/Materials -10/Mines -9/Materials (discovered 2 exits: [*Min] / Sto) -9/Mines (discovered 3 exits: [*Mat x2] / *Exi) -9/Exiles -8/Mines -8/Materials History --------- Turn | Location | Event 17 | -11/Scrapyard | Discovered new exit (range 16) 43 | -11/Scrapyard | Entered Materials 51 | -10/Materials | Discovered new exit (range 12) 78 | -10/Materials | Entered Mines 310 | -10/Mines | Build established: Mutant 384 | -10/Mines | Discovered new exit (range 15) 413 | -10/Mines | Entered Materials 413 | -9/Materials | Evolved 2 slots: Propulsion x1, Utility x1 414 | -9/Materials | Identified exit to Storage 687 | -9/Materials | Build established: Scavenger-Mutant 827 | -9/Materials | Lost 3 parts (1p2n) 869 | -9/Materials | Discovered new exit (range 11) 892 | -9/Materials | Entered Mines 1031 | -9/Mines | Build established: Mutant 1031 | -9/Mines | Learned 4 Materials zone layouts 1090 | -9/Mines | Discovered new exit (range 12) 1120 | -9/Mines | YI-UF0 nonchalantly dropped a Grenade Launcher on the ground 1160 | -9/Mines | A weapon hastily lodged in a ceiling crevice suddenly fell to the ground 1224 | -9/Mines | Discovered new exit (range 14) 1576 | -9/Mines | Learned location of Storage (-9) 1769 | -9/Mines | Deemed a non-threat by the Exiles lab entrance 1770 | -9/Mines | Discovered new exit (range 5) 1775 | -9/Mines | Entered Exiles 1805 | -9/Exiles | Met 8R-AWN 1826 | -9/Exiles | Met EX-HEX 1858 | -9/Exiles | Met EX-BIN 1907 | -9/Exiles | Met EX-DEC 1929 | -9/Exiles | Learned location of Zion (-6) 1981 | -9/Exiles | Discovered new exit (range 10) 2154 | -9/Exiles | Visited The Gauntlet 2325 | -9/Exiles | Entered Mines 2349 | -8/Mines | Core integrity fell below 50% 2407 | -8/Mines | Discovered new exit (range 16) 2419 | -8/Mines | Core integrity fell below 20% 2426 | -8/Mines | Entered Materials 2426 | -8/Materials | Evolved 2 slots: Utility x1, Weapon x1 2427 | -8/Materials | Lost 11 parts (2p2n2u5w) 2522 | -8/Materials | Self-destructed Last Messages --------------- 02472_ Switching to secondary target: Y-45 Defender. 02473_ EM Pulse Cannon destroyed. 02492_ Hadron Collector disabled. 02494_ Heat Sink fried. 02494_ Y-45 Defender destroyed. 02500_ R-06 Scavenger collects Heat Sink. 02504_ R-06 Scavenger collects Corrupted Heat Sink. 02508_ R-06 Scavenger collects Lgt. Treads. 02510_ Acquired Lgt. Armor Plating. 02513_ K-01 Serf collects debris. 02514_ Acquired EM Shotgun. 02516_ R-06 Scavenger collects Heat Sink. 02517_ C-30 ARC bursts open, deploying its payload. 02517_ S-10 Pest unfolds itself. 02520_ EM Shotgun destroyed. 02520_ Critical hit (Burn: +37). 02520_ EM Shotgun destroyed. Map ----- +----------------------------------------------------+ | ???????????????????????????????????????# # """ | | ???????????????????????????????????????# # """ | | ???????????????????????????????????????# # """ | | ???????????????????????????????????????# # | | ???????????????????????????????????????# ######## | | ???????????????????????????????????????# #??????? | | ???????????????????????????????????????# #??????? | | ???????????????????????????????????????# #??????? | | ???????????????????????????????????????# #??????? | | ???????????????????????????????????????# #??????? | | ?????????????????????????????#######???# #??????? | | ?????????????????????????????# ##### #??????? | | ????????????????????????###??# #??????? | | ???????????????????????# #?# #??????? | | ???????????????????????+ #?# #??????? | | ???????????????????????# #?# ###+#######???? | | ???????????????????????# #?## ## #???? | | ???????????????????????# #??# ## #???? | | ???????????????????????# #??# ## % #???? | | ???????????????????????# #### ## #???? | | ???????????????????????# ## """ """ #???? | | ???????????????????????# ## """ """ #???? | | ???????????????????????# ## """ """ #???? | | ????????????????????#####Y###### ## #???? | | ????????????????????# T s ## ############???? | | ????????????????????# @ r =## #??????????????? | | ????????????????????# """%## #??????????????? | | ????????????????????# "" ## #??????????????? | | ????????????????????#] ][[""" ## #??????????????? | | ????????????????????#] ]s%""" +%" #??????????????? | | ????????????????????#[ s ## #??????????????? | | ????????????????????# ## +??????????????? | | ????????????????????#### ####### #??????????????? | | ???????????????????????###?????# #??????????????? | | ???????????????????????????????# #??????????????? | | ???????????????????????????????# #??????????????? | | ???????????????????????????????+ #??????????????? | | ???????????????????????????????# #??????????????? | | ???????????????????????????????# #??????????????? | | ??????????????????????????????? ??????????????? | | ??????????????????????????????? ??????????????? | | ??????????????????????????????? ??????????????? | | ??????????????????????????????? ??????????????? | | ????????????????????????????#### #############??? | | ???????????????????????????? # # """"" #??? | | ???????????????????????????? + + """"" #??? | | ???????????????????????????? # # """"" #??? | | ???????????????????????????? # # #??? | | ???????????????????????????? + # #??? | | ???????????????????????????? # # #### | +----------------------------------------------------+ Best States ------------- Heat Dissipation 41 Energy Generation 18 Energy Capacity 250 Matter Stores 300 Matter Capacity 300 Sight Range 16 Robot Scan Range 14 Terrain Scan Density 10 Evasion (%) 63 Item Schematics ----------------- Structural Scanner | -9/Materials | Scanalyzed Robot Schematics ------------------ None Fabricated ------------ Nothing Alien Tech Used ----------------- None Achievements -------------- None Challenges ------------ None Game ------ Seed DerelictWardroneCalibrator Manual? 0 Play Time 00:16:32 Cumulative 18.4 hours Start 2024.03.27 @ 16:29:36 End 2024.03.27 @ 16:46:10 Sessions 1 Manual Loads 0 Difficulty Rogue Special Mode None Game No. 51 Rogue 49 Adventurer 2 Explorer 0 Win Type - Total 0 Types 0/0/0/0/0/0/0/0/0 Lore% 20 Gallery% 31 Achievement% 23 Wizard Run 0 Options --------- Layout 1 ASCII 0 Keyboard 0 Movement Arrows Keybinds 0 Fullscreen 2 Font 24/Smallcaps Map View 50x35 Zoom Use 0% Tactical HUD 1 Map Filters NONE Filters NONE Steam 1 RUN: 5d229bb1-a0a7-431d-ab9a-c46a9ed26073